[Event "*** Titled Tuesday Blitz"]
[Site "Chess.com"]
[Date "2020.11.03"]
[Round "11"]
[White "Keures"]
[Black "Everyfishknows"]
[Result "1/2-1/2"]
[WhiteElo "2327"]
[BlackElo "2399"]
[TimeControl "180+1"]
[EndTime "12:11:36 PST"]
[Termination "Game drawn - insufficient material"]

1. d4 {[%clk 0:03:00.9]} 1... Nf6 {[%clk 0:02:59.1]} 2. c4 {[%clk 0:03:00.7]}
2... e6 {[%clk 0:02:55.4]} 3. Nc3 {[%clk 0:03:00.5]} 3... Bb4 {[%clk 0:02:55.4]}
4. Qc2 {[%clk 0:03:00]} 4... O-O {[%clk 0:02:55.1]} 5. a3 {[%clk 0:03:00.3]}
5... Bxc3+ {[%clk 0:02:55.2]} 6. Qxc3 {[%clk 0:03:01.2]} 6... b6 {[%clk
0:02:56]} 7. Bg5 {[%clk 0:02:56.6]} 7... Ba6 {[%clk 0:02:55.7]} 8. Nf3 {[%clk
0:02:55.4]} 8... d6 {[%clk 0:02:51.1]} 9. Nd2 {[%clk 0:02:52.7]} 9... Nbd7
{[%clk 0:02:29.8]} 10. f3 {[%clk 0:02:46.9]} 10... h6 {[%clk 0:02:29.2]} 11. Bh4
{[%clk 0:02:46.5]} 11... c5 {[%clk 0:02:26.5]} 12. e3 {[%clk 0:02:39.4]} 12...
Rc8 {[%clk 0:02:24.8]} 13. Bd3 {[%clk 0:02:29.6]} 13... Qe7 {[%clk 0:02:23.2]}
14. O-O {[%clk 0:02:26.6]} 14... cxd4 {[%clk 0:02:14.2]} 15. exd4 {[%clk
0:02:26.7]} 15... d5 {[%clk 0:02:14.6]} 16. b3 {[%clk 0:02:23.5]} 16... g5
{[%clk 0:02:03.2]} 17. Bf2 {[%clk 0:02:18.8]} 17... Nh5 {[%clk 0:01:55.9]} 18.
g3 {[%clk 0:02:18.6]} 18... Qf6 {[%clk 0:01:52.6]} 19. Rac1 {[%clk 0:02:08.2]}
19... Bb7 {[%clk 0:01:40.4]} 20. c5 {[%clk 0:02:05.3]} 20... bxc5 {[%clk
0:01:36.6]} 21. dxc5 {[%clk 0:02:05.9]} 21... Qxc3 {[%clk 0:01:36.8]} 22. Rxc3
{[%clk 0:02:06]} 22... Ne5 {[%clk 0:01:25.2]} 23. Be2 {[%clk 0:01:55.1]} 23...
Nf6 {[%clk 0:01:11.9]} 24. b4 {[%clk 0:01:53.2]} 24... Rfd8 {[%clk 0:01:10]} 25.
Nb3 {[%clk 0:01:50]} 25... g4 {[%clk 0:01:05.3]} 26. f4 {[%clk 0:01:39.8]} 26...
Nc4 {[%clk 0:00:58]} 27. Bxc4 {[%clk 0:01:09.7]} 27... dxc4 {[%clk 0:00:57.5]}
28. Rxc4 {[%clk 0:01:09.9]} 28... Ba6 {[%clk 0:00:53.7]} 29. Rd4 {[%clk
0:00:59]} 29... Bxf1 {[%clk 0:00:51.6]} 30. Kxf1 {[%clk 0:00:58.3]} 30... Rxd4
{[%clk 0:00:38.9]} 31. Bxd4 {[%clk 0:00:51.9]} 31... Nd5 {[%clk 0:00:37.2]} 32.
Ke2 {[%clk 0:00:44.9]} 32... f6 {[%clk 0:00:33.2]} 33. Kd3 {[%clk 0:00:44.3]}
33... Kf7 {[%clk 0:00:31.9]} 34. Kc4 {[%clk 0:00:41.6]} 34... a6 {[%clk
0:00:29.6]} 35. a4 {[%clk 0:00:40.5]} 35... Nb6+ {[%clk 0:00:26.5]} 36. Kd3
{[%clk 0:00:34.6]} 36... Nxa4 {[%clk 0:00:25]} 37. Na5 {[%clk 0:00:34.5]} 37...
Ke7 {[%clk 0:00:14.9]} 38. Nc4 {[%clk 0:00:23.2]} 38... h5 {[%clk 0:00:09.2]}
39. Kc2 {[%clk 0:00:20]} 39... e5 {[%clk 0:00:04.2]} 40. fxe5 {[%clk 0:00:19.7]}
40... fxe5 {[%clk 0:00:05.1]} 41. Bxe5 {[%clk 0:00:18.5]} 41... Ke6 {[%clk
0:00:02.6]} 42. Bf4 {[%clk 0:00:11.7]} 42... Kd5 {[%clk 0:00:02.2]} 43. Kb3
{[%clk 0:00:09.6]} 43... Nxc5+ {[%clk 0:00:01.5]} 44. bxc5 {[%clk 0:00:09.4]}
44... Rxc5 {[%clk 0:00:02.4]} 45. Nb6+ {[%clk 0:00:07.9]} 45... Ke4 {[%clk
0:00:02.8]} 46. Nc4 {[%clk 0:00:05.1]} 46... Rb5+ {[%clk 0:00:03.1]} 47. Kc3
{[%clk 0:00:05.2]} 47... Rb7 {[%clk 0:00:01.8]} 48. Nd6+ {[%clk 0:00:05.2]}
48... Kf3 {[%clk 0:00:02.4]} 49. Nxb7 {[%clk 0:00:06.1]} 49... Kg2 {[%clk
0:00:03]} 50. Kb4 {[%clk 0:00:05.9]} 50... Kxh2 {[%clk 0:00:03.1]} 51. Kc3
{[%clk 0:00:05.8]} 51... Kh3 {[%clk 0:00:03.6]} 52. Kd3 {[%clk 0:00:05.9]} 52...
h4 {[%clk 0:00:04.3]} 53. gxh4 {[%clk 0:00:06.5]} 53... Kxh4 {[%clk 0:00:04.9]}
54. Ke2 {[%clk 0:00:07.2]} 54... g3 {[%clk 0:00:05.2]} 55. Kf1 {[%clk
0:00:07.1]} 55... Kg4 {[%clk 0:00:05.4]} 56. Bd6 {[%clk 0:00:07]} 56... Kf3
{[%clk 0:00:06.3]} 57. Kg1 {[%clk 0:00:07.1]} 57... Ke4 {[%clk 0:00:05.9]} 58.
Bc7 {[%clk 0:00:07.4]} 58... Kd5 {[%clk 0:00:06.8]} 59. Kg2 {[%clk 0:00:07.2]}
59... Kc6 {[%clk 0:00:07.2]} 60. Bd8 {[%clk 0:00:06.4]} 60... Kxb7 {[%clk
0:00:07.6]} 61. Kxg3 {[%clk 0:00:06.9]} 61... Kc6 {[%clk 0:00:08.5]} 62. Kf3
{[%clk 0:00:06.7]} 62... Kb5 {[%clk 0:00:09.4]} 63. Ke3 {[%clk 0:00:06.9]} 63...
Kc4 {[%clk 0:00:10.3]} 64. Kd2 {[%clk 0:00:06]} 64... Kb3 {[%clk 0:00:11.2]} 65.
Kc1 {[%clk 0:00:06.2]} 65... a5 {[%clk 0:00:12.1]} 66. Bxa5 {[%clk 0:00:05]}
1/2-1/2

[Event "*** Titled Tuesday Blitz"]
[Site "Chess.com"]
[Date "2020.11.03"]
[Round "11"]
[White "ajdemipopushi"]
[Black "VladaSviridova"]
[Result "1-0"]
[WhiteElo "2374"]
[BlackElo "2272"]
[TimeControl "180+1"]
[EndTime "12:11:53 PST"]
[Termination "ajdemipopushi won by checkmate"]

1. Nf3 {[%clk 0:03:00.9]} 1... d5 {[%clk 0:02:59.3]} 2. g3 {[%clk 0:03:01.1]}
2... Nf6 {[%clk 0:02:58.5]} 3. c4 {[%clk 0:03:01.3]} 3... c6 {[%clk 0:02:58.8]}
4. Bg2 {[%clk 0:03:01.6]} 4... dxc4 {[%clk 0:02:54.9]} 5. O-O {[%clk 0:03:00.9]}
5... Nbd7 {[%clk 0:02:53.3]} 6. Na3 {[%clk 0:02:59.6]} 6... Nb6 {[%clk
0:02:51.5]} 7. Qc2 {[%clk 0:02:59.7]} 7... g6 {[%clk 0:02:50.4]} 8. Nxc4 {[%clk
0:02:59]} 8... Nxc4 {[%clk 0:02:50.4]} 9. Qxc4 {[%clk 0:02:58.8]} 9... Bg7
{[%clk 0:02:51]} 10. d3 {[%clk 0:02:49.7]} 10... O-O {[%clk 0:02:50.8]} 11. Qb3
{[%clk 0:02:47.2]} 11... Qb6 {[%clk 0:02:48.6]} 12. Qc2 {[%clk 0:02:46.1]} 12...
Nd5 {[%clk 0:02:44.3]} 13. a3 {[%clk 0:02:45.7]} 13... a5 {[%clk 0:02:20.8]} 14.
Rb1 {[%clk 0:02:45.5]} 14... Rd8 {[%clk 0:01:55.8]} 15. e4 {[%clk 0:02:44.5]}
15... Nf6 {[%clk 0:01:55.4]} 16. Be3 {[%clk 0:02:44.1]} 16... Qb5 {[%clk
0:01:50.2]} 17. Rfd1 {[%clk 0:02:43.5]} 17... a4 {[%clk 0:01:47.7]} 18. d4
{[%clk 0:02:33.7]} 18... Bg4 {[%clk 0:01:44.5]} 19. h3 {[%clk 0:02:32.2]} 19...
Be6 {[%clk 0:01:39.3]} 20. Nd2 {[%clk 0:02:25]} 20... Bb3 {[%clk 0:01:33.6]} 21.
Nxb3 {[%clk 0:02:24.6]} 21... axb3 {[%clk 0:01:32.1]} 22. Qd3 {[%clk 0:02:21.3]}
22... Qxd3 {[%clk 0:01:20.4]} 23. Rxd3 {[%clk 0:02:21.1]} 23... c5 {[%clk
0:01:20.4]} 24. Rc1 {[%clk 0:02:04.5]} 24... cxd4 {[%clk 0:01:11.4]} 25. Rxd4
{[%clk 0:02:00.3]} 25... Rxd4 {[%clk 0:01:11.1]} 26. Bxd4 {[%clk 0:02:00.6]}
26... Rd8 {[%clk 0:01:11.5]} 27. Be3 {[%clk 0:01:56.3]} 27... Nd7 {[%clk
0:00:53.3]} 28. Rc7 {[%clk 0:01:53.4]} 28... Bxb2 {[%clk 0:00:39.3]} 29. Rxb7
{[%clk 0:01:52.9]} 29... Bxa3 {[%clk 0:00:30.4]} 30. Rxb3 {[%clk 0:01:52.7]}
30... Bc5 {[%clk 0:00:29.7]} 31. Bg5 {[%clk 0:01:50.1]} 31... f6 {[%clk
0:00:29.1]} 32. Bc1 {[%clk 0:01:45]} 32... Ne5 {[%clk 0:00:28.5]} 33. Rc3 {[%clk
0:01:28.1]} 33... Rd1+ {[%clk 0:00:27.7]} 34. Bf1 {[%clk 0:01:25.5]} 34... Bd4
{[%clk 0:00:22.7]} 35. Rc8+ {[%clk 0:01:24.8]} 35... Kg7 {[%clk 0:00:21.7]} 36.
Kg2 {[%clk 0:01:25.2]} 36... h5 {[%clk 0:00:18.6]} 37. Rc7 {[%clk 0:01:20.4]}
37... Kf8 {[%clk 0:00:17.5]} 38. Ba3 {[%clk 0:01:16.6]} 38... Rd2 {[%clk
0:00:14.4]} 39. Bxe7+ {[%clk 0:00:57.5]} 39... Ke8 {[%clk 0:00:14.2]} 40. Bb5+
{[%clk 0:00:56.9]} 40... Nd7 {[%clk 0:00:08]} 41. Rxd7 {[%clk 0:00:53.2]} 41...
Rxf2+ {[%clk 0:00:07.5]} 42. Kh1 {[%clk 0:00:51.6]} 42... Rb2 {[%clk 0:00:07.1]}
43. Rxd4+ {[%clk 0:00:48.1]} 43... Kxe7 {[%clk 0:00:07.1]} 44. Bd3 {[%clk
0:00:47.5]} 44... Rb3 {[%clk 0:00:06.8]} 45. Kg2 {[%clk 0:00:47.1]} 45... g5
{[%clk 0:00:04.4]} 46. Kf3 {[%clk 0:00:46.8]} 46... Rb2 {[%clk 0:00:02.5]} 47.
h4 {[%clk 0:00:46.9]} 47... g4+ {[%clk 0:00:02.3]} 48. Kf4 {[%clk 0:00:45.5]}
48... Rf2+ {[%clk 0:00:02.4]} 49. Ke3 {[%clk 0:00:45.3]} 49... Rf3+ {[%clk
0:00:03.1]} 50. Kd2 {[%clk 0:00:44.3]} 50... Rxg3 {[%clk 0:00:03.7]} 51. Rd5
{[%clk 0:00:43.8]} 51... Rg2+ {[%clk 0:00:03.5]} 52. Be2 {[%clk 0:00:43.6]}
52... g3 {[%clk 0:00:02.9]} 53. Ke3 {[%clk 0:00:42]} 53... Rh2 {[%clk
0:00:02.4]} 54. Bxh5 {[%clk 0:00:40.3]} 54... g2 {[%clk 0:00:01.6]} 55. Kf2
{[%clk 0:00:37.6]} 55... Rxh4 {[%clk 0:00:02]} 56. Kxg2 {[%clk 0:00:37.5]} 56...
Rxe4 {[%clk 0:00:01.1]} 57. Bf3 {[%clk 0:00:37.4]} 57... Re5 {[%clk 0:00:01.6]}
58. Rd3 {[%clk 0:00:36.5]} 58... Ke6 {[%clk 0:00:02.2]} 59. Kg3 {[%clk 0:00:37]}
59... Ke7 {[%clk 0:00:02.8]} 60. Kf4 {[%clk 0:00:37.3]} 60... Ke6 {[%clk
0:00:03.3]} 61. Ra3 {[%clk 0:00:37.4]} 61... Ke7 {[%clk 0:00:03.8]} 62. Ra6
{[%clk 0:00:37.6]} 62... Kf7 {[%clk 0:00:03.9]} 63. Bg4 {[%clk 0:00:37.4]} 63...
Kg6 {[%clk 0:00:04.2]} 64. Bf3 {[%clk 0:00:36]} 64... Rc5 {[%clk 0:00:04.3]} 65.
Be4+ {[%clk 0:00:35.9]} 65... Kf7 {[%clk 0:00:04.5]} 66. Bf5 {[%clk 0:00:34.7]}
66... Ke7 {[%clk 0:00:04.5]} 67. Ra7+ {[%clk 0:00:34.5]} 67... Kf8 {[%clk
0:00:03.8]} 68. Bg6 {[%clk 0:00:33.9]} 68... Kg8 {[%clk 0:00:03.2]} 69. Rf7
{[%clk 0:00:32.2]} 69... Rb5 {[%clk 0:00:03.1]} 70. Rxf6 {[%clk 0:00:31.8]}
70... Kg7 {[%clk 0:00:03.5]} 71. Rc6 {[%clk 0:00:31.7]} 71... Rb4+ {[%clk
0:00:03.8]} 72. Be4 {[%clk 0:00:31.9]} 72... Rb5 {[%clk 0:00:03.6]} 73. Bf5
{[%clk 0:00:31.5]} 73... Rb4+ {[%clk 0:00:03.3]} 74. Kg5 {[%clk 0:00:31.7]}
74... Rb2 {[%clk 0:00:03]} 75. Rc7+ {[%clk 0:00:31.9]} 75... Kf8 {[%clk
0:00:02.8]} 76. Kf6 {[%clk 0:00:32]} 76... Rb6+ {[%clk 0:00:03.3]} 77. Be6
{[%clk 0:00:32.3]} 77... Rb8 {[%clk 0:00:03.1]} 78. Rh7 {[%clk 0:00:32.1]} 78...
Ke8 {[%clk 0:00:02.5]} 79. Rh8# {[%clk 0:00:32]} 1-0

[Event "*** Titled Tuesday Blitz"]
[Site "Chess.com"]
[Date "2020.11.03"]
[Round "11"]
[White "Goryachkina"]
[Black "fyall777"]
[Result "1-0"]
[WhiteElo "2597"]
[BlackElo "2458"]
[TimeControl "180+1"]
[EndTime "12:11:54 PST"]
[Termination "Goryachkina won on time"]

1. e4 {[%clk 0:02:54.3]} 1... c5 {[%clk 0:02:58.6]} 2. Nf3 {[%clk 0:02:54]} 2...
d6 {[%clk 0:02:58.3]} 3. c3 {[%clk 0:02:53.8]} 3... Nf6 {[%clk 0:02:58.1]} 4.
Be2 {[%clk 0:02:53.8]} 4... Nbd7 {[%clk 0:02:54.8]} 5. d3 {[%clk 0:02:52.7]}
5... g6 {[%clk 0:02:53.8]} 6. O-O {[%clk 0:02:52.7]} 6... Bg7 {[%clk 0:02:48.9]}
7. Re1 {[%clk 0:02:48]} 7... O-O {[%clk 0:02:48.8]} 8. Bf1 {[%clk 0:02:48.2]}
8... b6 {[%clk 0:02:44.8]} 9. d4 {[%clk 0:02:48.3]} 9... Bb7 {[%clk 0:02:43.5]}
10. d5 {[%clk 0:02:45.3]} 10... a6 {[%clk 0:02:36.7]} 11. a4 {[%clk 0:02:45]}
11... Rb8 {[%clk 0:02:35.6]} 12. Na3 {[%clk 0:02:37.8]} 12... Qc8 {[%clk
0:02:27.6]} 13. h3 {[%clk 0:02:36.2]} 13... Ba8 {[%clk 0:02:25.3]} 14. Bf4
{[%clk 0:02:32.3]} 14... Ne8 {[%clk 0:02:21.5]} 15. e5 {[%clk 0:02:14.7]} 15...
dxe5 {[%clk 0:02:16.9]} 16. Nxe5 {[%clk 0:02:14.8]} 16... Nxe5 {[%clk
0:02:16.8]} 17. Bxe5 {[%clk 0:02:14.6]} 17... Bxe5 {[%clk 0:02:15.1]} 18. Rxe5
{[%clk 0:02:15.5]} 18... Nf6 {[%clk 0:02:00.5]} 19. c4 {[%clk 0:01:57.4]} 19...
Rb7 {[%clk 0:01:54.5]} 20. Qe2 {[%clk 0:01:56.7]} 20... Qd7 {[%clk 0:01:46.1]}
21. b3 {[%clk 0:01:45.7]} 21... Qd6 {[%clk 0:01:45.6]} 22. Re1 {[%clk
0:01:44.8]} 22... Re8 {[%clk 0:01:43.7]} 23. Qe3 {[%clk 0:01:42.6]} 23... Rd7
{[%clk 0:01:30.2]} 24. Qg3 {[%clk 0:01:23.5]} 24... Kg7 {[%clk 0:01:23.7]} 25.
Nc2 {[%clk 0:01:22.1]} 25... e6 {[%clk 0:00:59.4]} 26. dxe6 {[%clk 0:01:16.4]}
26... Rxe6 {[%clk 0:00:58.8]} 27. Rxe6 {[%clk 0:01:13.3]} 27... fxe6 {[%clk
0:00:58.5]} 28. Qxd6 {[%clk 0:00:52.6]} 28... Rxd6 {[%clk 0:00:57.7]} 29. Ne3
{[%clk 0:00:52.8]} 29... Ne4 {[%clk 0:00:49.8]} 30. Be2 {[%clk 0:00:46.5]} 30...
Nd2 {[%clk 0:00:44.6]} 31. Rd1 {[%clk 0:00:43.5]} 31... Rd4 {[%clk 0:00:44.4]}
32. Nc2 {[%clk 0:00:38.3]} 32... Rd7 {[%clk 0:00:40.7]} 33. Ne3 {[%clk
0:00:32.9]} 33... Bc6 {[%clk 0:00:39.9]} 34. Bg4 {[%clk 0:00:21.8]} 34... Kf6
{[%clk 0:00:35.9]} 35. Re1 {[%clk 0:00:14.3]} 35... h5 {[%clk 0:00:31.8]} 36.
Be2 {[%clk 0:00:13.6]} 36... Nxb3 {[%clk 0:00:31.5]} 37. Rb1 {[%clk 0:00:13.5]}
37... Bxa4 {[%clk 0:00:31.5]} 38. Bd1 {[%clk 0:00:12]} 38... Rd3 {[%clk
0:00:31.5]} 39. Bc2 {[%clk 0:00:11.9]} 39... Rc3 {[%clk 0:00:31.7]} 40. Rb2
{[%clk 0:00:09.7]} 40... b5 {[%clk 0:00:30.5]} 41. cxb5 {[%clk 0:00:07.9]} 41...
axb5 {[%clk 0:00:30.7]} 42. Nd1 {[%clk 0:00:04.9]} 42... Rxc2 {[%clk 0:00:30]}
43. Rxc2 {[%clk 0:00:05.5]} 43... c4 {[%clk 0:00:29.4]} 44. Nc3 {[%clk
0:00:05.1]} 44... Nc5 {[%clk 0:00:26.6]} 45. Rb2 {[%clk 0:00:02.9]} 45... Nd3
{[%clk 0:00:22.5]} 46. Rb1 {[%clk 0:00:03.4]} 46... Bc2 {[%clk 0:00:22.1]} 47.
Rxb5 {[%clk 0:00:03.1]} 47... Bb3 {[%clk 0:00:20.5]} 48. f3 {[%clk 0:00:03.4]}
48... Nf4 {[%clk 0:00:20.3]} 49. Ne4+ {[%clk 0:00:03.5]} 49... Ke7 {[%clk
0:00:19.4]} 50. Kf2 {[%clk 0:00:04.1]} 50... h4 {[%clk 0:00:18.6]} 51. g3 {[%clk
0:00:03.8]} 51... Nd3+ {[%clk 0:00:16.7]} 52. Ke3 {[%clk 0:00:04]} 52... hxg3
{[%clk 0:00:16.8]} 53. Nxg3 {[%clk 0:00:04.4]} 53... e5 {[%clk 0:00:14.8]} 54.
Ne4 {[%clk 0:00:04.7]} 54... Ke6 {[%clk 0:00:14.9]} 55. Rb6+ {[%clk 0:00:04.9]}
55... Ke7 {[%clk 0:00:13.9]} 56. Rxg6 {[%clk 0:00:05]} 56... Nf4 {[%clk
0:00:13.2]} 57. Rh6 {[%clk 0:00:04.8]} 57... Ng2+ {[%clk 0:00:13.1]} 58. Kd2
{[%clk 0:00:05]} 58... Nf4 {[%clk 0:00:10.9]} 59. h4 {[%clk 0:00:05.5]} 59...
Ba4 {[%clk 0:00:09.9]} 60. Rh7+ {[%clk 0:00:05.7]} 60... Kf8 {[%clk 0:00:09.4]}
61. h5 {[%clk 0:00:06]} 61... Kg8 {[%clk 0:00:09.7]} 62. Rh6 {[%clk 0:00:06.4]}
62... Kg7 {[%clk 0:00:09.3]} 63. Ra6 {[%clk 0:00:06.7]} 63... Bb5 {[%clk
0:00:08.7]} 64. h6+ {[%clk 0:00:07.1]} 64... Kh7 {[%clk 0:00:08.4]} 65. Rb6
{[%clk 0:00:07.6]} 65... Be8 {[%clk 0:00:07.7]} 66. Ng5+ {[%clk 0:00:07.8]}
66... Kg8 {[%clk 0:00:04.9]} 67. h7+ {[%clk 0:00:07.7]} 67... Kg7 {[%clk
0:00:05]} 68. Rb7+ {[%clk 0:00:07.8]} 68... Kh8 {[%clk 0:00:02.9]} 69. Rb8
{[%clk 0:00:08.3]} 1-0

[Event "*** Titled Tuesday Blitz"]
[Site "Chess.com"]
[Date "2020.11.03"]
[Round "11"]
[White "DenisQ"]
[Black "jacky72"]
[Result "1/2-1/2"]
[WhiteElo "2652"]
[BlackElo "2541"]
[TimeControl "180+1"]
[EndTime "12:11:58 PST"]
[Termination "Game drawn by stalemate"]

1. Nf3 {[%clk 0:03:00.9]} 1... Nf6 {[%clk 0:02:59.8]} 2. c4 {[%clk 0:03:00.6]}
2... g6 {[%clk 0:03:00.7]} 3. Nc3 {[%clk 0:03:00.2]} 3... Bg7 {[%clk 0:03:01.6]}
4. g3 {[%clk 0:03:00.4]} 4... O-O {[%clk 0:03:02.5]} 5. Bg2 {[%clk 0:03:00.6]}
5... d6 {[%clk 0:03:03.4]} 6. O-O {[%clk 0:03:00.7]} 6... Nc6 {[%clk 0:03:04.3]}
7. Rb1 {[%clk 0:02:59.8]} 7... a5 {[%clk 0:03:03]} 8. a3 {[%clk 0:02:59.6]} 8...
e5 {[%clk 0:03:02.5]} 9. b4 {[%clk 0:02:59.5]} 9... axb4 {[%clk 0:03:03.4]} 10.
axb4 {[%clk 0:03:00]} 10... Re8 {[%clk 0:03:00.9]} 11. b5 {[%clk 0:02:58.6]}
11... Nd4 {[%clk 0:02:56.6]} 12. d3 {[%clk 0:02:57.6]} 12... Ne6 {[%clk
0:02:48.7]} 13. Ng5 {[%clk 0:02:55]} 13... Nc5 {[%clk 0:02:44.8]} 14. Nge4
{[%clk 0:02:43.5]} 14... Nfxe4 {[%clk 0:02:41.4]} 15. Nxe4 {[%clk 0:02:44.4]}
15... Ne6 {[%clk 0:02:38.4]} 16. Bb2 {[%clk 0:02:40.4]} 16... c6 {[%clk
0:02:34.7]} 17. bxc6 {[%clk 0:02:28.3]} 17... bxc6 {[%clk 0:02:35.6]} 18. Qc2
{[%clk 0:02:23.5]} 18... d5 {[%clk 0:02:30.5]} 19. cxd5 {[%clk 0:02:20.8]} 19...
cxd5 {[%clk 0:02:31.4]} 20. Nc5 {[%clk 0:02:20.1]} 20... Nxc5 {[%clk 0:02:30.5]}
21. Qxc5 {[%clk 0:02:19.3]} 21... Be6 {[%clk 0:02:31.4]} 22. Rfc1 {[%clk
0:02:16.1]} 22... Qa5 {[%clk 0:02:27.9]} 23. Qxa5 {[%clk 0:02:12.1]} 23... Rxa5
{[%clk 0:02:28.8]} 24. Bc3 {[%clk 0:02:06.4]} 24... Ra2 {[%clk 0:02:24]} 25. Rb2
{[%clk 0:02:05.4]} 25... Rea8 {[%clk 0:02:20.9]} 26. Rxa2 {[%clk 0:01:52]} 26...
Rxa2 {[%clk 0:02:21.8]} 27. Ra1 {[%clk 0:01:51.5]} 27... Rxa1+ {[%clk
0:01:52.7]} 28. Bxa1 {[%clk 0:01:50.7]} 28... f5 {[%clk 0:01:53.4]} 29. f4
{[%clk 0:01:45.5]} 29... e4 {[%clk 0:01:49.1]} 30. Bxg7 {[%clk 0:01:44.6]} 30...
Kxg7 {[%clk 0:01:50]} 31. d4 {[%clk 0:01:42]} 31... h6 {[%clk 0:01:46.6]} 32.
Kf2 {[%clk 0:01:38.8]} 32... g5 {[%clk 0:01:47.5]} 33. e3 {[%clk 0:01:38.5]}
33... Kf6 {[%clk 0:01:47.1]} 34. Bf1 {[%clk 0:01:38]} 34... Ke7 {[%clk
0:01:44.5]} 35. Ke1 {[%clk 0:01:36.4]} 35... Kd6 {[%clk 0:01:41.6]} 36. fxg5
{[%clk 0:01:25.2]} 36... hxg5 {[%clk 0:01:41.3]} 37. h4 {[%clk 0:01:26.1]} 37...
gxh4 {[%clk 0:01:40.1]} 38. gxh4 {[%clk 0:01:27]} 38... Ke7 {[%clk 0:01:39.5]}
39. Kf2 {[%clk 0:01:26.1]} 39... f4 {[%clk 0:01:25.7]} 40. exf4 {[%clk 0:01:27]}
40... Kf6 {[%clk 0:01:26]} 41. Kg3 {[%clk 0:01:24.6]} 41... Bf7 {[%clk
0:01:24.9]} 42. Bh3 {[%clk 0:01:22.8]} 42... Bh5 {[%clk 0:01:21.1]} 43. Bc8
{[%clk 0:01:20.2]} 43... e3 {[%clk 0:01:16.5]} 44. Bb7 {[%clk 0:01:15.8]} 44...
e2 {[%clk 0:01:15.6]} 45. Kf2 {[%clk 0:01:14.9]} 45... Kf5 {[%clk 0:00:56.4]}
46. Ba6 {[%clk 0:01:01.9]} 46... Kxf4 {[%clk 0:00:53.6]} 47. Bxe2 {[%clk
0:01:00.1]} 47... Bg6 {[%clk 0:00:50]} 48. Bf3 {[%clk 0:00:59]} 48... Bf7 {[%clk
0:00:45.5]} 49. Ke2 {[%clk 0:00:51.9]} 49... Be6 {[%clk 0:00:34.4]} 50. h5
{[%clk 0:00:51.2]} 50... Bg8 {[%clk 0:00:30]} 51. Bg2 {[%clk 0:00:28.4]} 51...
Kg5 {[%clk 0:00:25.7]} 52. Bf3 {[%clk 0:00:27.9]} 52... Kf4 {[%clk 0:00:19.8]}
53. Kf2 {[%clk 0:00:27.7]} 53... Kf5 {[%clk 0:00:11.2]} 54. Kg3 {[%clk
0:00:26.8]} 54... Kg5 {[%clk 0:00:11.8]} 55. Kf2 {[%clk 0:00:20.3]} 55... Kf4
{[%clk 0:00:11.2]} 56. Bh1 {[%clk 0:00:19.3]} 56... Kg5 {[%clk 0:00:10.2]} 57.
Bf3 {[%clk 0:00:18.6]} 57... Kf4 {[%clk 0:00:10.7]} 58. Ke2 {[%clk 0:00:18.2]}
58... Kg5 {[%clk 0:00:06.5]} 59. Ke3 {[%clk 0:00:18.3]} 59... Bf7 {[%clk
0:00:06.8]} 60. Kd3 {[%clk 0:00:13.7]} 60... Bxh5 {[%clk 0:00:04.1]} 61. Bxd5
{[%clk 0:00:13.8]} 61... Kf5 {[%clk 0:00:04.4]} 62. Kc4 {[%clk 0:00:12.5]} 62...
Kf6 {[%clk 0:00:03.8]} 63. Kc5 {[%clk 0:00:12.8]} 63... Ke7 {[%clk 0:00:04.7]}
64. Be4 {[%clk 0:00:12.7]} 64... Kd8 {[%clk 0:00:04.9]} 65. Kd6 {[%clk
0:00:12.2]} 65... Be8 {[%clk 0:00:05.2]} 66. Ke6 {[%clk 0:00:11.4]} 66... Ba4
{[%clk 0:00:05.5]} 67. Bd3 {[%clk 0:00:10.2]} 67... Bb3+ {[%clk 0:00:05.6]} 68.
Kd6 {[%clk 0:00:10.4]} 68... Ba2 {[%clk 0:00:06]} 69. Bf5 {[%clk 0:00:10.4]}
69... Bg8 {[%clk 0:00:06]} 70. Be6 {[%clk 0:00:10.5]} 70... Bh7 {[%clk
0:00:06.4]} 71. Ke5 {[%clk 0:00:10.8]} 71... Bc2 {[%clk 0:00:06]} 72. d5 {[%clk
0:00:11.1]} 72... Bb3 {[%clk 0:00:06.4]} 73. d6 {[%clk 0:00:11.4]} 73... Bxe6
{[%clk 0:00:05.7]} 74. Kxe6 {[%clk 0:00:12.3]} 74... Ke8 {[%clk 0:00:06.6]} 75.
d7+ {[%clk 0:00:12.3]} 75... Kd8 {[%clk 0:00:07]} 76. Kd6 {[%clk 0:00:13.2]}
1/2-1/2